{"text_format":"3","workbook":"xlsx","n_sheets":8,"sheets":["Synthèse","Fonctionnalités","Déclinaison projet","ELEVE A","ELEVE B","ELEVE C","MODE EMPLOI","parametres"],"not_rendered":{"images":1,"macros":1,"external_links":1,"defined_names":28},"read":"whole","date_system":"1900"}

{"sheet":"Synthèse","index":0,"n_rows":25,"n_cols":12,"rows_kept":25,"merged":[[0,6,2,10],[2,1,2,4],[4,1,4,2],[4,7,4,11],[5,1,6,4],[5,6,12,11],[7,2,7,4],[8,1,9,4],[10,2,10,4],[11,1,12,4],[14,1,14,2],[14,3,14,4],[14,6,14,8],[16,1,16,2],[16,3,16,11],[18,7,19,7],[18,8,19,8],[19,1,19,2],[22,11,23,11],[25,1,25,2],[25,4,25,6]]}
[]
[]
[]
[]
[null,"INTITULE DU PROJET ",null,"Effectif :  ",null,null,"SUPPORT","Coller une image donnant un repère visuel du projet"]
[]
[]
[null,"ENJEU","Question de société , …"]
[]
[]
[null,"PROBLEMATIQUE","Problème  à résoudre"]
[]
[]
[]
[null,"PROFESSEUR REFERENT :"]
[]
[null,"EQUIPE PEDAGOGIQUE associée :"]
[]
[{"$nulls":7},"Compétences C1 à C4 Evaluables","Plus de 70% de Capacités prises en compte"]
[null,"ELEVES du groupe de projet : ",null,"Nom","Prénom",{"$nulls":4},"GLOBAL"]
[null,null,"Elève A :",{"$nulls":4},{"$f":"'ELEVE A'!T23","v":"NON"},{"$f":"'ELEVE A'!T25","v":"NON"}]
[null,null,"Elève B :",{"$nulls":4},{"$f":"'ELEVE B'!T23","v":"NON"},{"$f":"'ELEVE B'!T25","v":"NON"},null,null,"Pluridisciplinarité :"]
[null,null,"Elève C :",{"$nulls":4},{"$f":"'ELEVE C'!T23","v":"NON"},{"$f":"'ELEVE C'!T25","v":"NON"},null,null,"Intervention de professeur(s) autre discipline"]
[{"$nulls":9},{"$f":"#REF!","v":{"$error":"#REF!"}}]
[{"$nulls":9},{"$f":"#REF!","v":{"$error":"#REF!"}},null,{"$f":"'Déclinaison projet'!J39","v":"NON"}]

{"sheet":"Fonctionnalités","index":1,"n_rows":5,"n_cols":1,"rows_kept":5,"merged":[[4,0,4,1],[8,0,8,1],[9,0,9,1],[10,0,10,1],[11,0,11,1],[12,0,12,1],[13,0,13,1]]}
[]
[]
[]
[]
["Fonctionnalités  attendues du  projet"]

{"sheet":"Déclinaison projet","index":2,"n_rows":39,"n_cols":21,"rows_kept":39,"merged":[[8,0,8,4],[8,6,8,7],[9,0,9,4]]}
[]
[]
[]
[]
[]
[null,null,"Elève A:","Elève B:","Elève C:"]
[null,null,{"$f":"Synthèse!D21","v":0},{"$f":"Synthèse!D22","v":0},{"$f":"Synthèse!D23","v":0}]
[null,null,{"$f":"IF([1]parametres!F2>1,SUM(#REF!),\"X\")","v":{"$error":"#REF!"}},{"$f":"IF([1]parametres!F3>1,SUM(#REF!),\"X\")","v":{"$error":"#REF!"}},{"$f":"IF([1]parametres!F4>1,SUM(#REF!),\"X\")","v":{"$error":"#REF!"}}]
["ETAPES / TACHES",{"$nulls":5},"Contribution de professeurs d'autres disciplines"]
["SPECIFICATION / PLANIFICATION",{"$nulls":6},"discipline(s)",{"$nulls":3},"EA","EB","EC",null,null,"EA"]
[1,{"$nulls":8},{"$f":"IF(G11=\"\",0,1)","v":0},null,{"$f":"IF(C11=\"x\",$B11,\"*\")","v":"*"},{"$f":"IF(D11=\"x\",$B11,\"*\")","v":"*"},{"$f":"IF(E11=\"x\",$B11,\"*\")","v":"*"},null,null,"*","*","*","EA","*"]
[2,{"$nulls":8},{"$f":"IF(G12=\"\",0,1)","v":0},null,{"$f":"IF(C12=\"x\",$B12,\"*\")","v":"*"},"*","*",null,null,"*","*","*"]
[3,{"$nulls":8},0,null,"*","*","*",null,null,"*","*","*"]
[4,{"$nulls":8},0,null,"*","*","*",null,null,"*","*","*"]
[5,{"$nulls":8},0,null,"*","*","*",null,null,"*","*","*"]
[6,{"$nulls":8},0,null,"*","*","*",null,null,"*",null,"*"]
[7,{"$nulls":8},0,null,"*","*","*",{"$nulls":4},"*"]
[8,{"$nulls":8},0,null,"*","*","*",null,null,"*","*","*"]
[9,{"$nulls":10},"*",null,"*",{"$nulls":4},"wx "]
[10,{"$nulls":8},0,null,"*","*","*",null,null,"*","*","*"]
[11,{"$nulls":8},0,null,"*","*","*",null,null,"*","*","*"]
[12,{"$nulls":8},{"$f":"IF(G22=\"\",0,1)","v":0},null,{"$f":"IF(C22=\"x\",$B22,\"*\")","v":"*"},{"$f":"IF(D22=\"x\",$B22,\"*\")","v":"*"},{"$f":"IF(E22=\"x\",$B22,\"*\")","v":"*"},null,null,"*","*","*"]
[13,{"$nulls":8},0,null,"*","*","*",null,null,"*","*","*"]
[14,{"$nulls":8},0,null,"*","*","*",null,null,"*","*","ege"]
[15,{"$nulls":8},0,null,"*","*","*",null,null,"*","*","eg"]
[16,{"$nulls":8},0,null,"*","*","*",{"$nulls":4},"eg"]
[17,{"$nulls":8},0,null,"*","*","*",null,null,"*","*","eeqrg"]
{"$rows_empty":11}
[{"$nulls":9},{"$f":"IF(SUM(J11:J37)>0,\"OUI\",\"NON\")","v":"NON"}]

{"sheet":"ELEVE A","index":3,"n_rows":25,"n_cols":55,"rows_kept":25,"merged":[[0,0,0,1],[1,0,1,1],[2,0,2,1],[3,1,3,22],[4,1,4,2],[5,1,5,2],[6,1,6,22],[7,1,7,2],[8,1,8,2],[9,1,9,2],[10,1,10,22],[11,1,11,2],[12,1,12,2],[13,1,13,2],[14,1,14,22],[15,1,15,2],[16,1,16,2],[17,1,17,2],[18,1,18,22],[19,1,19,2],[20,1,20,2],[22,3,22,18],[22,19,22,22],[24,3,24,18],[24,19,24,22]]}
["Nom de l'élève :",null,{"$f":"Synthèse!D21","v":0}]
["Prénom :",null,{"$f":"Synthèse!E21","v":0}]
[{"$nulls":3},"*","*","*","*","*","*",null,"*","*","*","*","*","*",null,"*"]
["C1","Décrire et expliquer une situation, un système ou un programme",{"$nulls":22},{"$f":"IF(SUM(BB5:BB6)>0,\"oui\",\"Non\")","v":"Non"},{"$nulls":29},{"$f":"IF(Y4=\"oui\",1,0)","v":0}]
[null,"C1.1 Justifier dans une situation donnée, un codage numérique ou l'usage d'un format approprié, qu'un programme réalise l'action attendue…",{"$nulls":21},{"$f":"IF(BB5=1,\"Evaluable\",\"Non-Evalauble\")","v":"Non-Evalauble"},{"$nulls":8},{"$f":"IF(D5=\"\",0,1)","v":0},0,0,0,0,0,0,0,0,0,{"$f":"IF(N5=\"\",0,1)","v":0},0,0,0,0,0,0,0,0,0,null,{"$f":"IF(SUM(AG5:AZ5)>0,1,0)","v":0}]
[null,"C1.2 Détailler le déroulement d'une communication numérique, le rôle des constituants d'un système numérique, le rôle des éléments constitutifs d'une page web, ce qu'effectue tout ou partie d'un programme ou de l'algorithme associé, l'enchaînement des événements qui réalisent la fonction attendue par un programme…",{"$nulls":21},{"$f":"IF(BB6=1,\"Evaluable\",\"Non-Evalauble\")","v":"Non-Evalauble"},{"$nulls":8},0,0,0,0,0,0,0,0,0,0,0,0,0,0,0,0,0,0,0,0,null,{"$f":"IF(SUM(AG6:AZ6)>0,1,0)","v":0}]
["C2","Concevoir et réaliser une solution informatique en réponse à un problème",{"$nulls":22},{"$f":"IF(SUM(BB8:BB10)>0,\"oui\",\"Non\")","v":"Non"},{"$nulls":29},{"$f":"IF(Y7=\"oui\",1,0)","v":0}]
[null,"C2.1 Analyser un besoin dans un système d'information, le fonctionnement d'un algorithme …",{"$nulls":21},"Non-Evalauble",{"$nulls":8},{"$f":"IF(D8=\"\",0,1)","v":0},{"$f":"IF(E8=\"\",0,1)","v":0},{"$f":"IF(F8=\"\",0,1)","v":0},{"$f":"IF(G8=\"\",0,1)","v":0},{"$f":"IF(H8=\"\",0,1)","v":0},{"$f":"IF(I8=\"\",0,1)","v":0},{"$f":"IF(J8=\"\",0,1)","v":0},{"$f":"IF(K8=\"\",0,1)","v":0},{"$f":"IF(L8=\"\",0,1)","v":0},{"$f":"IF(M8=\"\",0,1)","v":0},{"$f":"IF(N8=\"\",0,1)","v":0},{"$f":"IF(O8=\"\",0,1)","v":0},{"$f":"IF(P8=\"\",0,1)","v":0},{"$f":"IF(Q8=\"\",0,1)","v":0},{"$f":"IF(R8=\"\",0,1)","v":0},{"$f":"IF(S8=\"\",0,1)","v":0},{"$f":"IF(T8=\"\",0,1)","v":0},{"$f":"IF(U8=\"\",0,1)","v":0},{"$f":"IF(V8=\"\",0,1)","v":0},{"$f":"IF(W8=\"\",0,1)","v":0},null,0]
[null,"C2.2 Structurer une formule logique, des données, une arborescence, une page web, une approche fonctionnelle en réponse à un besoin…",{"$nulls":21},"Non-Evalauble",{"$nulls":8},0,0,0,0,0,0,0,0,0,0,0,0,0,0,0,0,0,0,0,0,null,0]
[null,"C2.3 Développer une interface logicielle ou une interface homme-machine, un algorithme, un programme, un document ou fichier numérique…\n",{"$nulls":21},"Non-Evalauble",{"$nulls":8},0,0,0,0,0,0,0,0,0,0,0,0,0,0,0,0,0,0,0,0,null,0]
["C3","Collaborer efficacement au sein d’une équipe dans le cadre d’un projet",{"$nulls":22},{"$f":"IF(SUM(BB12:BB14)>0,\"oui\",\"Non\")","v":"Non"},{"$nulls":29},{"$f":"IF(Y11=\"oui\",1,0)","v":0}]
[null,"C3.1 Agir au sein d'une équipe dans des rôles bien définis, en interaction avec le professeur.",{"$nulls":21},"Non-Evalauble",{"$nulls":8},0,0,0,0,0,0,0,0,0,0,0,0,0,0,0,0,0,0,0,0,null,0]
[null,"C3.2 Rechercher et partager une information, une documentation, une explication.",{"$nulls":21},"Non-Evalauble",{"$nulls":8},0,0,0,0,0,0,0,0,0,0,0,0,0,0,0,0,0,0,0,0,null,0]
[null,"C3.3 Maîtriser l'utilisation d'outils numériques collaboratifs du type ENT, système de gestion de contenu (CMS), groupe de travail, forums…",{"$nulls":21},"Non-Evalauble",{"$nulls":8},0,0,0,0,0,0,0,0,0,0,0,0,0,0,0,0,0,0,0,0,null,0]
["C4","Communiquer à l'écrit et à l'oral",{"$nulls":22},{"$f":"IF(SUM(BB16:BB18)>0,\"oui\",\"Non\")","v":"Non"},{"$nulls":29},{"$f":"IF(Y15=\"oui\",1,0)","v":0}]
[null,"C4.1 Documenter un projet numérique pour en permettre la communication en cours de réalisation et à l'achèvement, tout en précisant le déroulement et la finalité du projet.","Les consignes de travail sont appliquées.",{"$nulls":20},"Non-Evalauble",{"$nulls":8},0,0,0,0,0,0,0,0,0,0,0,0,0,0,0,0,0,0,0,0,null,0]
[null,"C4.2 Présenter le cahier des charges relatif à un projet ou un mini-projet, la répartition des tâches au sein de l'équipe, les phases successives mises en œuvre, le déroulement de l'ensemble des opérations…","Une surveillance est effectuée.",{"$nulls":20},"Non-Evalauble",{"$nulls":8},0,0,0,0,0,0,0,0,0,0,0,0,0,0,0,0,0,0,0,0,null,0]
[null,"C4.3 Argumenter les choix relatifs à une solution (choix d'un format, d'un algorithme, d'une interface…).","Les situations à risques sont pointées.",{"$nulls":20},"Non-Evalauble",{"$nulls":8},0,0,0,0,0,0,0,0,0,0,0,0,0,0,0,0,0,0,0,0,null,0]
["C5","Faire un usage responsable des sciences du numérique en ayant conscience des problèmes sociétaux induits"]
[null,"C5.1 Avoir conscience de l'impact du numérique dans la société notamment de la persistance de l'information numérique, de la non-rivalité des biens immatériels, du caractère supranational des réseaux, de l'importance des licences et du droit.","Les équipes de sous-traitants sont intégrées sur le chantier.",{"$nulls":20},"Non-Evalauble",{"$nulls":8},0,0,0,0,0,0,0,0,0,0,0,0,0,0,0,0,0,0,0,0,null,0]
[null,"C5.2 Mesurer les limites et les conséquences de la persistance de l'information numérique, des lois régissant les échanges numériques, du caractère suprana­tional des réseaux.","Une surveillance est effectuée.",{"$nulls":20},"Non-Evalauble",{"$nulls":8},0,0,0,0,0,0,0,0,0,0,0,0,0,0,0,0,0,0,0,0,null,0]
[]
[{"$nulls":3},"Les Compétences de C1 à C4 sont évaluables:",{"$nulls":15},{"$f":"IF(SUM(BC4,BC7,BC11,BC15)=4,\"OUI\",\"NON\")","v":"NON"},{"$nulls":12},{"$f":"IF(T23=\"non\",0,1)","v":0},{"$nulls":20},{"$f":"SUM(BB5:BB18)","v":0}]
[]
[{"$nulls":3}," Plus de 70% des capacités sont prises en compte",{"$nulls":15},{"$f":"IF(BB23>7,\"OUI\",\"NON\")","v":"NON"},{"$nulls":12},{"$f":"IF(T25=\"non\",0,1)","v":0}]

{"sheet":"ELEVE B","index":4,"n_rows":25,"n_cols":55,"rows_kept":25,"merged":[[0,0,0,1],[1,0,1,1],[2,0,2,1],[3,1,3,22],[4,1,4,2],[5,1,5,2],[6,1,6,22],[7,1,7,2],[8,1,8,2],[9,1,9,2],[10,1,10,22],[11,1,11,2],[12,1,12,2],[13,1,13,2],[14,1,14,22],[15,1,15,2],[16,1,16,2],[17,1,17,2],[18,1,18,22],[19,1,19,2],[20,1,20,2],[22,3,22,18],[22,19,22,22],[24,3,24,18],[24,19,24,22]]}
["Nom de l'élève :",null,{"$f":"Synthèse!D22","v":0}]
["Prénom :",null,{"$f":"Synthèse!E22","v":0}]
[{"$nulls":3},"*","*","*","*","*",null,null,"*","*","*","*","*","*",null,"*"]
["C1","Décrire et expliquer une situation, un système ou un programme",{"$nulls":22},{"$f":"IF(SUM(BB5:BB6)>0,\"oui\",\"Non\")","v":"Non"},{"$nulls":29},{"$f":"IF(Y4=\"oui\",1,0)","v":0}]
[null,"C1.1 Justifier dans une situation donnée, un codage numérique ou l'usage d'un format approprié, qu'un programme réalise l'action attendue…",{"$nulls":21},{"$f":"IF(BB5=1,\"Evaluable\",\"Non-Evalauble\")","v":"Non-Evalauble"},{"$nulls":8},{"$f":"IF(D5=\"\",0,1)","v":0},0,0,0,0,0,0,0,0,0,{"$f":"IF(N5=\"\",0,1)","v":0},0,0,0,0,0,0,0,0,0,null,{"$f":"IF(SUM(AG5:AZ5)>0,1,0)","v":0}]
[null,"C1.2 Détailler le déroulement d'une communication numérique, le rôle des constituants d'un système numérique, le rôle des éléments constitutifs d'une page web, ce qu'effectue tout ou partie d'un programme ou de l'algorithme associé, l'enchaînement des événements qui réalisent la fonction attendue par un programme…",{"$nulls":21},{"$f":"IF(BB6=1,\"Evaluable\",\"Non-Evalauble\")","v":"Non-Evalauble"},{"$nulls":8},0,0,0,0,0,0,0,0,0,0,0,0,0,0,0,0,0,0,0,0,null,{"$f":"IF(SUM(AG6:AZ6)>0,1,0)","v":0}]
["C2","Concevoir et réaliser une solution informatique en réponse à un problème",{"$nulls":22},{"$f":"IF(SUM(BB8:BB10)>0,\"oui\",\"Non\")","v":"Non"},{"$nulls":29},{"$f":"IF(Y7=\"oui\",1,0)","v":0}]
[null,"C2.1 Analyser un besoin dans un système d'information, le fonctionnement d'un algorithme …",{"$nulls":21},"Non-Evalauble",{"$nulls":8},{"$f":"IF(D8=\"\",0,1)","v":0},0,0,0,0,0,0,0,0,0,0,0,0,0,0,0,{"$f":"IF(T8=\"\",0,1)","v":0},0,0,0,null,0]
[null,"C2.2 Structurer une formule logique, des données, une arborescence, une page web, une approche fonctionnelle en réponse à un besoin…",{"$nulls":21},"Non-Evalauble",{"$nulls":8},0,0,0,0,0,0,0,0,0,0,0,0,0,0,0,0,0,0,0,0,null,0]
[null,"C2.3 Développer une interface logicielle ou une interface homme-machine, un algorithme, un programme, un document ou fichier numérique…\n",{"$nulls":21},"Non-Evalauble",{"$nulls":8},0,0,0,0,0,0,0,0,0,0,0,0,0,0,0,0,0,0,0,0,null,0]
["C3","Collaborer efficacement au sein d’une équipe dans le cadre d’un projet",{"$nulls":22},{"$f":"IF(SUM(BB12:BB14)>0,\"oui\",\"Non\")","v":"Non"},{"$nulls":29},{"$f":"IF(Y11=\"oui\",1,0)","v":0}]
[null,"C3.1 Agir au sein d'une équipe dans des rôles bien définis, en interaction avec le professeur.",{"$nulls":21},"Non-Evalauble",{"$nulls":8},0,0,0,0,0,0,0,0,0,0,0,0,0,0,0,0,0,0,0,0,null,0]
[null,"C3.2 Rechercher et partager une information, une documentation, une explication.",{"$nulls":21},"Non-Evalauble",{"$nulls":8},0,0,0,0,0,0,0,0,0,0,0,0,0,0,0,0,0,0,0,0,null,0]
[null,"C3.3 Maîtriser l'utilisation d'outils numériques collaboratifs du type ENT, système de gestion de contenu (CMS), groupe de travail, forums…",{"$nulls":21},"Non-Evalauble",{"$nulls":8},0,0,0,0,0,0,0,0,0,0,0,0,0,0,0,0,0,0,0,0,null,0]
["C4","Communiquer à l'écrit et à l'oral",{"$nulls":22},{"$f":"IF(SUM(BB16:BB18)>0,\"oui\",\"Non\")","v":"Non"},{"$nulls":29},{"$f":"IF(Y15=\"oui\",1,0)","v":0}]
[null,"C4.1 Documenter un projet numérique pour en permettre la communication en cours de réalisation et à l'achèvement, tout en précisant le déroulement et la finalité du projet.","Les consignes de travail sont appliquées.",{"$nulls":20},"Non-Evalauble",{"$nulls":8},0,0,0,0,0,0,0,0,0,0,0,0,0,0,0,0,0,0,0,0,null,0]
[null,"C4.2 Présenter le cahier des charges relatif à un projet ou un mini-projet, la répartition des tâches au sein de l'équipe, les phases successives mises en œuvre, le déroulement de l'ensemble des opérations…","Une surveillance est effectuée.",{"$nulls":20},"Non-Evalauble",{"$nulls":8},0,0,0,0,0,0,0,0,0,0,0,0,0,0,0,0,0,0,0,0,null,0]
[null,"C4.3 Argumenter les choix relatifs à une solution (choix d'un format, d'un algorithme, d'une interface…).","Les situations à risques sont pointées.",{"$nulls":20},"Non-Evalauble",{"$nulls":8},0,0,0,0,0,0,0,0,0,0,0,0,0,0,0,0,0,0,0,0,null,0]
["C5","Faire un usage responsable des sciences du numé-rique en ayant conscience des problèmes sociétaux induits"]
[null,"C5.1 Avoir conscience de l'impact du numérique dans la société notamment de la persistance de l'information numérique, de la non-rivalité des biens immatériels, du caractère supranational des réseaux, de l'importance des licences et du droit.","Les équipes de sous-traitants sont intégrées sur le chantier.",{"$nulls":20},"Non-Evalauble",{"$nulls":8},0,0,0,0,0,0,0,0,0,0,0,0,0,0,0,0,0,0,0,0,null,0]
[null,"C5.2 Mesurer les limites et les conséquences de la persistance de l'information numérique, des lois régissant les échanges numériques, du caractère suprana­tional des réseaux.","Une surveillance est effectuée.",{"$nulls":20},"Non-Evalauble",{"$nulls":8},0,0,0,0,0,0,0,0,0,0,0,0,0,0,0,0,0,0,0,0,null,0]
[]
[{"$nulls":3},"Les Compétences de C1 à C4 sont évaluables:",{"$nulls":15},{"$f":"IF(SUM(BC4,BC7,BC11,BC15)=4,\"OUI\",\"NON\")","v":"NON"},{"$nulls":33},{"$f":"SUM(BB5:BB18)","v":0}]
[]
[{"$nulls":3}," Plus de 70% des capacités sont prises en compte",{"$nulls":15},{"$f":"IF(BB23>7,\"OUI\",\"NON\")","v":"NON"}]

{"sheet":"ELEVE C","index":5,"n_rows":25,"n_cols":55,"rows_kept":25,"merged":[[0,0,0,1],[1,0,1,1],[2,0,2,1],[3,1,3,22],[4,1,4,2],[5,1,5,2],[6,1,6,22],[7,1,7,2],[8,1,8,2],[9,1,9,2],[10,1,10,22],[11,1,11,2],[12,1,12,2],[13,1,13,2],[14,1,14,22],[15,1,15,2],[16,1,16,2],[17,1,17,2],[18,1,18,22],[19,1,19,2],[20,1,20,2],[22,3,22,18],[22,19,22,22],[24,3,24,18],[24,19,24,22]]}
["Nom de l'élève :",null,{"$f":"Synthèse!D23","v":0}]
["Prénom :",null,{"$f":"Synthèse!E23","v":0}]
[{"$nulls":3},"*","*","*","*","*","*","*","*","wx ","*","*","*","*","ege","eg","eg","eeqrg"]
["C1","Décrire et expliquer une situation, un système ou un programme",{"$nulls":22},{"$f":"IF(SUM(BB5:BB6)>0,\"oui\",\"Non\")","v":"Non"},{"$nulls":29},{"$f":"IF(Y4=\"oui\",1,0)","v":0}]
[null,"C1.1 Justifier dans une situation donnée, un codage numérique ou l'usage d'un format approprié, qu'un programme réalise l'action attendue…",{"$nulls":21},{"$f":"IF(BB5=1,\"Evaluable\",\"Non-Evalauble\")","v":"Non-Evalauble"},{"$nulls":8},{"$f":"IF(D5=\"\",0,1)","v":0},0,0,0,0,0,0,0,0,0,{"$f":"IF(N5=\"\",0,1)","v":0},0,0,0,0,0,0,0,0,0,null,{"$f":"IF(SUM(AG5:AZ5)>0,1,0)","v":0}]
[null,"C1.2 Détailler le déroulement d'une communication numérique, le rôle des constituants d'un système numérique, le rôle des éléments constitutifs d'une page web, ce qu'effectue tout ou partie d'un programme ou de l'algorithme associé, l'enchaînement des événements qui réalisent la fonction attendue par un programme…",{"$nulls":21},{"$f":"IF(BB6=1,\"Evaluable\",\"Non-Evalauble\")","v":"Non-Evalauble"},{"$nulls":8},0,0,0,0,0,0,0,0,0,0,0,0,0,0,0,0,0,0,0,0,null,{"$f":"IF(SUM(AG6:AZ6)>0,1,0)","v":0}]
["C2","Concevoir et réaliser une solution informatique en réponse à un problème",{"$nulls":22},{"$f":"IF(SUM(BB8:BB10)>0,\"oui\",\"Non\")","v":"Non"},{"$nulls":29},{"$f":"IF(Y7=\"oui\",1,0)","v":0}]
[null,"C2.1 Analyser un besoin dans un système d'information, le fonctionnement d'un algorithme …",{"$nulls":21},"Non-Evalauble",{"$nulls":8},{"$f":"IF(D8=\"\",0,1)","v":0},0,0,0,0,0,0,0,0,0,0,0,0,0,0,0,{"$f":"IF(T8=\"\",0,1)","v":0},0,0,0,null,0]
[null,"C2.2 Structurer une formule logique, des données, une arborescence, une page web, une approche fonctionnelle en réponse à un besoin…",{"$nulls":21},"Non-Evalauble",{"$nulls":8},0,0,0,0,0,0,0,0,0,0,0,0,0,0,0,0,0,0,0,0,null,0]
[null,"C2.3 Développer une interface logicielle ou une interface homme-machine, un algorithme, un programme, un document ou fichier numérique…\n",{"$nulls":21},"Non-Evalauble",{"$nulls":8},0,0,0,0,0,0,0,0,0,0,0,0,0,0,0,0,0,0,0,0,null,0]
["C3","Collaborer efficacement au sein d’une équipe dans le cadre d’un projet",{"$nulls":22},{"$f":"IF(SUM(BB12:BB14)>0,\"oui\",\"Non\")","v":"Non"},{"$nulls":29},{"$f":"IF(Y11=\"oui\",1,0)","v":0}]
[null,"C3.1 Agir au sein d'une équipe dans des rôles bien définis, en interaction avec le professeur.",{"$nulls":21},"Non-Evalauble",{"$nulls":8},0,0,0,0,0,0,0,0,0,0,0,0,0,0,0,0,0,0,0,0,null,0]
[null,"C3.2 Rechercher et partager une information, une documentation, une explication.",{"$nulls":21},"Non-Evalauble",{"$nulls":8},0,0,0,0,0,0,0,0,0,0,0,0,0,0,0,0,0,0,0,0,null,0]
[null,"C3.3 Maîtriser l'utilisation d'outils numériques collaboratifs du type ENT, système de gestion de contenu (CMS), groupe de travail, forums…",{"$nulls":21},"Non-Evalauble",{"$nulls":8},0,0,0,0,0,0,0,0,0,0,0,0,0,0,0,0,0,0,0,0,null,0]
["C4","Communiquer à l'écrit et à l'oral",{"$nulls":22},{"$f":"IF(SUM(BB16:BB18)>0,\"oui\",\"Non\")","v":"Non"},{"$nulls":29},{"$f":"IF(Y15=\"oui\",1,0)","v":0}]
[null,"C4.1 Documenter un projet numérique pour en permettre la communication en cours de réalisation et à l'achèvement, tout en précisant le déroulement et la finalité du projet.","Les consignes de travail sont appliquées.",{"$nulls":20},"Non-Evalauble",{"$nulls":8},0,0,0,0,0,0,0,0,0,0,0,0,0,0,0,0,0,0,0,0,null,0]
[null,"C4.2 Présenter le cahier des charges relatif à un projet ou un mini-projet, la répartition des tâches au sein de l'équipe, les phases successives mises en œuvre, le déroulement de l'ensemble des opérations…","Une surveillance est effectuée.",{"$nulls":20},"Non-Evalauble",{"$nulls":8},0,0,0,0,0,0,0,0,0,0,0,0,0,0,0,0,0,0,0,0,null,0]
[null,"C4.3 Argumenter les choix relatifs à une solution (choix d'un format, d'un algorithme, d'une interface…).","Les situations à risques sont pointées.",{"$nulls":20},"Non-Evalauble",{"$nulls":8},0,0,0,0,0,0,0,0,0,0,0,0,0,0,0,0,0,0,0,0,null,0]
["C5","Faire un usage responsable des sciences du numé-rique en ayant conscience des problèmes sociétaux induits"]
[null,"C5.1 Avoir conscience de l'impact du numérique dans la société notamment de la persistance de l'information numérique, de la non-rivalité des biens immatériels, du caractère supranational des réseaux, de l'importance des licences et du droit.","Les équipes de sous-traitants sont intégrées sur le chantier.",{"$nulls":20},"Non-Evalauble",{"$nulls":8},0,0,0,0,0,0,0,0,0,0,0,0,0,0,0,0,0,0,0,0,null,0]
[null,"C5.2 Mesurer les limites et les conséquences de la persistance de l'information numérique, des lois régissant les échanges numériques, du caractère suprana­tional des réseaux.","Une surveillance est effectuée.",{"$nulls":20},"Non-Evalauble",{"$nulls":8},0,0,0,0,0,0,0,0,0,0,0,0,0,0,0,0,0,0,0,0,null,0]
[]
[{"$nulls":3},"Les Compétences de C1 à C4 sont évaluables:",{"$nulls":15},{"$f":"IF(SUM(BC4,BC7,BC11,BC15)=4,\"OUI\",\"NON\")","v":"NON"},{"$nulls":33},{"$f":"SUM(BB5:BB18)","v":0}]
[]
[{"$nulls":3}," Plus de 70% des capacités sont prises en compte",{"$nulls":15},{"$f":"IF(BB23>7,\"OUI\",\"NON\")","v":"NON"}]

{"sheet":"MODE EMPLOI","index":6,"n_rows":46,"n_cols":2,"rows_kept":46,"merged":[[9,1,11,1]]}
[null,"Annexe 1: MODE D'EMPLOI-Dossier Validation"]
[]
[null,"CE DOSSIER permet de caractériser un projet proposé en spécialité ISN du BAC S, en vue d'une validation académique."]
[null,"Pour fonctionner, il faut autoriser l'activation des macros (avec une version de MSexcel 2007 au moins)."]
[]
["1.","Remplir le premier onglet (\"Synthèse\") en indiquant les éléments donnant le cadre général du projet"]
["1.1.","Enjeu"]
[null,"L'enjeu défini la raison pour laquelle le projet est conduit.  Les  projets doivent s'inscrire dans une réalité scientifique et/ou technologique répondant à un besoin actuel concret de la société."]
["1.2.","Problématique"]
[null,"La problématique doit traduire l’enjeu en termes d’objectifs scientifiques et/ou techniques . La problématique doit faire apparaitre une valeur ajoutée en termes de service rendu. A formuler sous forme de question."]
[]
[]
["1.3.","Support"]
[null,"Coller une image donnant un repère visuel du projet"]
[]
["2.","Compléter le deuxième onglet (Fonctionnalités) "]
[null,"Les fonctionnalités  doivent caractériser les besoins de service attendus   d’un point de vue de l’utilisateur (ou client). \nLes élèves sont associés à la formalisation du sujet mais la rédaction du dossier relève de la responsabilité de l’équipe pédagogique, qui garantit le niveau et la faisabilité du projet. Il ne définit aucune solution.\n"]
["3.","Décliner le projet en tâches (onglet \"Déclinaison projet\")"]
[null,"- Pour chaque étape jalonnant le projet, lister les tâches prévisionnelles"]
[]
[null,"- Répartir les tâches entre les élèves en cochant les cases de la partie droite du tableau"]
[]
[]
[]
["4.","Pour chaque élève (onglet \"Eleve A\", \"Eleve B\", …):"]
[null,"Une grille apparaît avec les compétences à évaluer dans le cadre du projet."]
[null,"Cliquer sur l'îcone \"Mettre à jour les tâches\"; les tâches affectées à l'élève sont automatiquement reportées."]
[null,"Indiquer pour chaque tâche les capacités  qui sont mobilisées"]
[null,"Le pourcentage d'indicateurs associés aux capacités évaluables est calculé automatiquement; deux valeurs sont calculeées :"]
[]
[]
[null,"en STI2D, le BO précise que 50% au moins des indicateurs de la grille de revues de projet devront être évaluES"]
[]
[]
[null,"en STI2D, le BO précise que 50% au moins des indicateurs de la grille de soutenance finale devront être évaluES"]
[]
[null,"% d'indicateurs globalement évaluables"]
[null,"en SSI, le BO précise que 50% au moins des indicateurs de la grille unique d'évaluation devront êtres évaluES"]
[]
["5.","Vérifier sur l'onglet \"Synthèse\" que les voyants sont au vert, ou éventuellement à l'orange."]
[null,"* si le pourcentage de capacités associées prises en compte est inférieur à 70% un indicateur rouge apparaitra dans l'onglet synthèse à la ligne de l'élève concerné"]
[null,"* Si une compétence n'est pas évaluable , un indicateur rouge apparaitra à la ligne de l'élève concerné"]
[null,"REMARQUES IMPORTANTES:"]
[null,"L'onglet \"Synthèse\" permet de s'assurer de la validité du projet"]
[]
[null,"Les grilles de déclinaison du projet et validation de tâches par élèves sont renseignées initialement de façon prévisionnelles, et peuvent évoluer en cours de réalisation du projet, pour laisser la place à la dimension créative de la démarche de projet. Les équipes devront s'assurer que ces évolutions laissent toutefois les indicateurs au vert."]

{"sheet":"parametres","index":7,"n_rows":62,"n_cols":10,"rows_kept":62}
["Session","Etablissement","Effectif",null,null,"Eleves","choix","Production(s) attendue(s)","Nb tâches","Question"]
["Session 2013","G.Eiffel",2,null,null,"Elève A",1,"Justifications scientifiques, technologiques, socio-économiques",1,"OUI"]
["Session 2014","Gambetta",3,null,null,"Elève B",1,"Architectures de solutions",2,"NON"]
["Session 2015","Mollet",{"$nulls":3},"Elève C",1,"Documents de formalisation de la solution imaginée ",3]
["Session 2016","Robespierre",{"$nulls":3},"Elève D",1,"Supports de communication ",4]
["Session 2017","J.Forest",{"$nulls":3},"Elève E",1,"Prototype ou une maquette numérique ou matérielle",5]
["Session 2018","Andre Malraux",{"$nulls":6},6]
["Session 2019","Carnot",{"$nulls":6},7]
["Session 2020","L De Vinci",{"$nulls":6},8]
[null,"Fenelon",{"$nulls":6},9]
[null,"Duez",{"$nulls":6},10]
[null,"Pays de Conde",{"$nulls":6},11]
[null,"Alfred Kastler",{"$nulls":6},12]
[null,"Edmond Labbe",{"$nulls":6},13]
[null,"De L'europe",{"$nulls":6},14]
[null,"J.BART",{"$nulls":6},15]
[null,"De Flandre",{"$nulls":6},16]
[null,"Noodover",{"$nulls":6},17]
[null,"Beaupre",{"$nulls":6},18]
[null,"Des Flandres",{"$nulls":6},19]
[null," Pasteur",{"$nulls":6},20]
[null,"Jean Perrin",{"$nulls":6},21]
[null,"Auguste Behal",{"$nulls":6},22]
[null,"DARRAS",{"$nulls":6},23]
[null,"Faidherbe",{"$nulls":6},24]
[null,"Cesar Baggio",{"$nulls":6},25]
[null,"Anatole France",{"$nulls":6},26]
[null,"Pascal",{"$nulls":6},27]
[null,"Pierre Forest",{"$nulls":6},28]
[null,"Eugene Woillez",{"$nulls":6},29]
[null,"Jean Rostand",{"$nulls":6},30]
[null,"Louis Pasteur"]
[null,"Couteaux"]
[null,"G Sann"]
[null,"Alexandre Ribot"]
[null,"Chatelet"]
[null,"Colbert"]
[null," Wallon"]
[null,"Queneau"]
[null,"Voltaire"]
[null,"Sainte Odile, Lambersart"]
[null,"Saint Pierre, Lille"]
[null,"Sainte Claire, Lille"]
[null,"Frédéric Ozanam, Lille"]
[null,"Notre-Dame de la Paix, Lille"]
[null,"Sainte Marie, Beaucamps Ligny"]
[null,"Jude, Armentières"]
[null,"Saint Louis, Armentières"]
[null,"Saint Rémi, Roubaix"]
[null,"Industriel et commercial privé, Tourcoing"]
[null,"E.P.I.D, Dunkerque"]
[null,"Saint Jean, Douai"]
[null,"Notre Dame des Anges, Saint Amand les Eaux"]
[null,"Dampierre, Valenciennes"]
[null,"Théophile Legrand, Louvroil"]
[null,"Notre-Dame de Grâce, Maubeuge"]
[null,"Saint Luc – Notre Dame la Sagesse, Cambrai"]
[null,"Saint Michel, Solesmes"]
[null,"Baudimont Saint-Charles, Arras"]
[null,"Saint Pierre, Calais"]
[null,"la Malassise, Longuenesse"]
[null,"Nazareth-Haffreingue, Boulogne-sur-Mer"]